fUST/lending_fUST_20240116
["ID","MTS","AMOUNT","RATE_DAILY","PERIOD"]
[311704304,1705343438944,-500.0,0.00030136,2]
[311704306,1705343438953,-500.0,0.00030136,2]
[311704308,1705343438962,-500.0,0.00030136,2]
[311704309,1705343438971,-500.0,0.00030136,2]
[311704311,1705343438980,-500.0,0.00030136,2]
[311704313,1705343438989,-500.0,0.00030136,2]
[311704315,1705343438998,-631.43,0.00030136,2]
[311704317,1705343439007,-500.0,0.00030136,2]
[311704319,1705343439017,-563.01,0.00030136,2]
[311704321,1705343439026,-500.0,0.00030136,2]
[311704323,1705343439035,-908.84,0.00030136,2]
[311704325,1705343439044,-500.0,0.00030136,2]
[311704326,1705343439053,-501.36504592,0.00030136,2]
[311704328,1705343439062,-1693.05,0.00030136,2]
[311704329,1705343439071,-585.56,0.00030136,2]
[311704330,1705343439080,-500.0,0.00030136,2]
[311704331,1705343439089,-500.0,0.00030136,2]
[311704332,1705343439099,-615.40630783,0.00030136,2]
[311704333,1705343439109,-500.0,0.00030136,2]
[311704334,1705343439118,-500.0,0.00030136,2]
[311704335,1705343439128,-500.0,0.00030136,2]
[311704336,1705343439138,-500.0,0.00030136,2]
[311704337,1705343439147,-500.0,0.00030136,2]
[311704338,1705343439156,-500.0,0.00030136,2]
[311704339,1705343439166,-219.91537736,0.00030136,2]
[311704340,1705343439175,-500.0,0.00030136,2]
[311704341,1705343439187,-500.0,0.00030136,2]
[311704342,1705343439196,-500.0,0.00030136,2]
[311704343,1705343439205,-582.59,0.00030136,2]
[311704344,1705343439215,-500.0,0.00030136,2]
[311704345,1705343439224,-500.0,0.00030136,2]
[311704346,1705343439234,-507.22407258,0.00030136,2]
[311704347,1705343439337,-500.0,0.00030136,2]
[311704348,1705343439348,-500.0,0.00030136,2]
[311704349,1705343439358,-501.54973426,0.00030136,2]
[311704351,1705343439367,-500.0,0.00030136,2]
[311704352,1705343439376,-500.0,0.00030136,2]
[311704353,1705343439386,-500.0,0.00030136,2]
[311704354,1705343439395,-500.0,0.00030136,2]
[311704355,1705343439405,-500.0,0.00030136,2]
[311704356,1705343439414,-500.0,0.00030136,2]
[311704357,1705343439424,-500.0,0.00030136,2]
[311704358,1705343439435,-702.8,0.00030136,2]
[311704359,1705343439445,-288.11097916,0.00030136,2]
[311704360,1705343439454,-500.0,0.00030136,2]
[311704362,1705343439464,-501.79948089,0.00030136,2]
[311704363,1705343439474,-1082.47,0.00030136,2]
[311704364,1705343439483,-500.0,0.00030136,2]
[311704365,1705343439493,-794.59,0.00030136,2]
[311704366,1705343439504,-500.0,0.00030136,2]
[311704367,1705343439513,-500.0,0.00030136,2]
[311704368,1705343439523,-607.37,0.00030136,2]
[311704369,1705343439533,-733.17,0.00030136,2]
[311704370,1705343439543,-500.0,0.00030136,2]
[311704371,1705343439554,-506.28699417,0.00030136,2]
[311704372,1705343439564,-500.0,0.00030136,2]
[311704373,1705343439573,-500.0,0.00030136,2]
[311704374,1705343439582,-500.0,0.00030136,2]
[311704375,1705343439593,-500.0,0.00030136,2]
[311704376,1705343439602,-500.0,0.00030136,2]
[311704377,1705343439611,-500.0,0.00030136,2]
[311704378,1705343439621,-500.0,0.00030136,2]
[311704379,1705343439631,-500.0,0.00030136,2]
[311704380,1705343439641,-500.0,0.00030136,2]
[311704381,1705343439650,-584.31465626,0.00030136,2]
[311704382,1705343439659,-500.0,0.00030136,2]
[311704383,1705343439668,-2184.44,0.00030136,2]
[311704384,1705343439677,-506.78614687,0.00030136,2]
[311704385,1705343439687,-500.0,0.00030136,2]
[311704386,1705343439696,-1034.25,0.00030136,2]
[311704387,1705343439705,-500.0,0.00030136,2]
[311704388,1705343439715,-433.35458811,0.00030136,2]
[311704389,1705343439724,-403.6744754,0.00030136,2]
[311704390,1705343439733,-504.07303375,0.00030136,2]
[311704391,1705343439742,-500.0,0.00030136,2]
[311704392,1705343439751,-953.62,0.00030136,2]
[311704393,1705343439761,-2304.21,0.00030136,2]
[311704394,1705343439770,-500.0,0.00030136,2]
[311704395,1705343439779,-153.67876609,0.00030136,2]
[311704396,1705343439789,-500.0,0.00030136,2]
[311704397,1705343439799,-500.0,0.00030136,2]
[311704398,1705343439808,-500.0,0.00030136,2]
[311704399,1705343439817,-500.0,0.00030136,2]
[311704400,1705343439827,-500.0,0.00030136,2]
[311704401,1705343439836,-500.0,0.00030136,2]
[311704402,1705343439846,-150.0,0.00030136,2]
[311704403,1705343439855,-3151.97,0.00030136,2]
[311704404,1705343439864,-500.0,0.00030136,2]
[311704405,1705343439873,-500.0,0.00030136,2]
[311704406,1705343439881,-563.1,0.00030136,2]
[311704407,1705343439890,-559.89,0.00030136,2]
[311704408,1705343439899,-500.0,0.00030136,2]
[311704409,1705343439908,-11217.72,0.00030136,2]
[311704410,1705343439918,-500.0,0.00030136,2]
[311704411,1705343439927,-553.34,0.00030136,2]
[311704413,1705343439936,-1536.58,0.00030136,2]
[311704415,1705343439945,-500.0,0.00030136,2]
[311704416,1705343439955,-527.88068403,0.00030136,2]
[311704418,1705343439966,-181.0274032,0.00030136,2]
[311704420,1705343439975,-1170.92,0.00030136,2]
[311704422,1705343439984,-1026.86,0.00030136,2]
[311704423,1705343439993,-507.17422751,0.00030136,2]
[311704424,1705343440002,-500.0,0.00030136,2]
[311704425,1705343440012,-509.23456875,0.00030136,2]
[311704426,1705343440022,-500.0,0.00030136,2]
[311704427,1705343440031,-611.43,0.00030136,2]
[311704428,1705343440040,-500.0,0.00030136,2]
[311704429,1705343440049,-19044.57,0.00030136,2]
[311704430,1705343440058,-500.0,0.00030136,2]
[311704431,1705343440068,-4316.49,0.00030136,2]
[311704432,1705343440076,-500.0,0.00030136,2]
[311704433,1705343440085,-500.0,0.00030136,2]
[311704434,1705343440095,-500.0,0.00030136,2]
[311704435,1705343440104,-709.86,0.00030136,2]
[311704436,1705343440113,-500.0,0.00030136,2]
[311704437,1705343440123,-500.0,0.00030136,2]
[311704438,1705343440132,-618.92361801,0.00030136,2]
[311704439,1705343440142,-2187.6,0.00030136,2]
[311704440,1705343440153,-589.14573616,0.00030136,2]
[311704441,1705343440163,-3813.86,0.00030136,2]
[311704442,1705343440172,-166.98600418,0.00030136,2]
[311704443,1705343440183,-512.24310383,0.00030136,2]
[311704444,1705343440193,-2086.7,0.00030136,2]
[311704445,1705343440202,-500.0,0.00030136,2]
[311704446,1705343440212,-907.54,0.00030136,2]
[311704447,1705343440222,-589.03,0.00030136,2]
[311704448,1705343440237,-500.0,0.00030136,2]
[311704450,1705343440248,-799.99,0.00030136,2]
[311704451,1705343440258,-500.0,0.00030136,2]
[311704452,1705343440268,-500.0,0.00030136,2]
[311704453,1705343440278,-4961.14,0.00030136,2]
[311704454,1705343440294,-500.0,0.00030136,2]
[311704455,1705343440305,-500.0,0.00030136,2]
[311704456,1705343440314,-5301.62,0.00030136,2]
[311704457,1705343440324,-500.0,0.00030136,2]
[311704458,1705343440333,-153.0,0.00030137,2]
[311704459,1705343440343,-153.0,0.00030137,2]
[311704460,1705343440352,-153.0,0.00030137,2]
[311704461,1705343440361,-153.0,0.00030137,2]
[311704462,1705343440371,-153.0,0.00030137,2]
[311704463,1705343440380,-766.98809165,0.00030245,2]
[311704464,1705343440389,-231.99597369,0.00030245,2]
[311704465,1705343440398,-175.92909631,0.00030245,2]
[311704466,1705343440407,-500.0,0.00030389,5]
[311704467,1705343440416,-848.66817018,0.00030409,4]
[311704468,1705343440425,-500.0,0.0003041,2]
[311704469,1705343440434,-563.4,0.0003041,2]
[311704470,1705343440444,-1047.57,0.0003041,2]
[311704471,1705343440453,-679.92,0.0003041,2]
[311704472,1705343440463,-500.0,0.0003041,2]
[311704473,1705343440473,-500.0,0.0003041,2]
[311704474,1705343440482,-500.0,0.0003041,2]
[311704475,1705343440491,-500.0,0.0003041,2]
[311704476,1705343440500,-619.06,0.0003041,2]
[311704477,1705343440509,-500.0,0.0003041,2]
[311704478,1705343440517,-550.28296109,0.0003041,2]
[311704479,1705343440526,-500.0,0.0003041,2]
[311704480,1705343440535,-500.0,0.0003041,2]
[311704481,1705343440544,-500.0,0.0003041,2]
[311704482,1705343440553,-574.30974102,0.0003041,2]
[311704483,1705343440561,-500.0,0.0003041,2]
[311704484,1705343440571,-631.43,0.0003041,2]
[311704485,1705343440580,-500.0,0.0003041,2]
[311704486,1705343440590,-563.01,0.0003041,2]
[311704487,1705343440599,-500.0,0.0003041,2]
[311704488,1705343440608,-908.84,0.0003041,2]
[311704489,1705343440617,-1693.05,0.0003041,2]
[311704490,1705343440627,-585.56,0.0003041,2]
[311704491,1705343440636,-500.0,0.0003041,2]
[311704492,1705343440645,-500.0,0.0003041,2]
[311704493,1705343440654,-500.0,0.0003041,2]
[311704494,1705343440663,-500.0,0.0003041,2]
[311704495,1705343440672,-505.95577879,0.0003041,2]
[311704496,1705343440682,-500.0,0.0003041,2]
[311704497,1705343440691,-500.0,0.0003041,2]
[311704498,1705343440700,-582.59,0.0003041,2]
[311704499,1705343440710,-500.0,0.0003041,2]
[311704500,1705343440719,-500.0,0.0003041,2]
[311704501,1705343440728,-500.0,0.0003041,2]
[311704502,1705343440737,-500.0,0.0003041,2]
[311704503,1705343440746,-500.0,0.0003041,2]
[311704504,1705343440755,-500.0,0.0003041,2]
[311704505,1705343440764,-500.0,0.0003041,2]
[311704506,1705343440773,-500.0,0.0003041,2]
[311704507,1705343440782,-500.0,0.0003041,2]
[311704508,1705343440791,-500.0,0.0003041,2]
[311704509,1705343440800,-702.8,0.0003041,2]
[311704510,1705343440808,-500.0,0.0003041,2]
[311704511,1705343440818,-1082.47,0.0003041,2]
[311704512,1705343440827,-500.0,0.0003041,2]
[311704513,1705343440837,-794.59,0.0003041,2]
[311704514,1705343440848,-500.0,0.0003041,2]
[311704515,1705343440858,-500.0,0.0003041,2]
[311704516,1705343440867,-607.37,0.0003041,2]
[311704517,1705343440876,-733.17,0.0003041,2]
[311704518,1705343440885,-500.0,0.0003041,2]
[311704519,1705343440894,-500.0,0.0003041,2]
[311704520,1705343440903,-500.0,0.0003041,2]
[311704521,1705343440913,-500.0,0.0003041,2]
[311704522,1705343440922,-500.0,0.0003041,2]
[311704523,1705343440931,-500.0,0.0003041,2]
[311704524,1705343440941,-500.0,0.0003041,2]
[311704525,1705343440950,-500.0,0.0003041,2]
[311704526,1705343440960,-547.64413327,0.0003041,2]
[311704527,1705343440969,-2184.44,0.0003041,2]
[311704528,1705343440977,-505.75645169,0.0003041,2]
[311704529,1705343440986,-1034.25,0.0003041,2]
[311704530,1705343440995,-500.0,0.0003041,2]
[311704531,1705343441005,-500.0,0.0003041,2]
[311704532,1705343441014,-953.62,0.0003041,2]
[311704533,1705343441023,-2304.21,0.0003041,2]
[311704534,1705343441032,-500.0,0.0003041,2]
[311704535,1705343441041,-500.0,0.0003041,2]
[311704536,1705343441051,-500.0,0.0003041,2]
[311704537,1705343441060,-500.0,0.0003041,2]
[311704538,1705343441070,-500.0,0.0003041,2]
[311704539,1705343441080,-500.0,0.0003041,2]
[311704540,1705343441090,-150.0,0.0003041,2]
[311704541,1705343441100,-3151.97,0.0003041,2]
[311704542,1705343441109,-500.0,0.0003041,2]
[311704543,1705343441118,-500.0,0.0003041,2]
[311704544,1705343441128,-563.1,0.0003041,2]
[311704545,1705343441137,-559.89,0.0003041,2]
[311704546,1705343441147,-500.0,0.0003041,2]
[311704547,1705343441156,-11217.72,0.0003041,2]
[311704548,1705343441165,-500.0,0.0003041,2]
[311704550,1705343441174,-1536.58,0.0003041,2]
[311704552,1705343441183,-553.34,0.0003041,2]
[311704553,1705343441192,-500.0,0.0003041,2]
[311704555,1705343441201,-1170.92,0.0003041,2]
[311704557,1705343441210,-1026.86,0.0003041,2]
[311704558,1705343441219,-500.0,0.0003041,2]
[311704559,1705343441229,-500.0,0.0003041,2]
[311704560,1705343441238,-611.43,0.0003041,2]
[311704561,1705343441247,-500.0,0.0003041,2]
[311704562,1705343441256,-19044.57,0.0003041,2]
[311704563,1705343441265,-500.0,0.0003041,2]
[311704564,1705343441274,-4316.49,0.0003041,2]
[311704565,1705343441283,-500.0,0.0003041,2]
[311704566,1705343441293,-709.86,0.0003041,2]
[311704567,1705343441302,-500.0,0.0003041,2]
[311704568,1705343441311,-500.0,0.0003041,2]
[311704569,1705343441320,-2187.6,0.0003041,2]
[311704570,1705343441331,-3813.86,0.0003041,2]
[311704571,1705343441347,-2086.7,0.0003041,2]
[311704572,1705343441357,-500.0,0.0003041,2]
[311704573,1705343441366,-907.54,0.0003041,2]
[311704574,1705343441376,-589.03,0.0003041,2]
[311704575,1705343441387,-500.0,0.0003041,2]
[311704576,1705343441469,-799.99,0.0003041,2]
[311704577,1705343441479,-500.0,0.0003041,2]
[311704578,1705343441489,-503.35556638,0.0003041,2]
[311704579,1705343441498,-4961.14,0.0003041,2]
[311704580,1705343441507,-228.4686916,0.0003041,2]
[311704581,1705343441516,-500.0,0.0003041,2]
[311704582,1705343441525,-5301.62,0.0003041,2]
[311704583,1705343441535,-500.0,0.0003041,2]
[311704584,1705343441544,-744.271708,0.0003041,2]
[311704585,1705343441553,-744.271708,0.0003041,2]
[311704586,1705343441562,-15464.47406873,0.00030584,2]
[311704587,1705343441580,-1626.55009296,0.00030584,2]
[311704588,1705343441672,-3394.28273094,0.00027597,3]
[311704594,1705343443024,-3239.76726906,0.00027597,3]
[311704595,1705343443034,-2180.57845979,0.00030584,2]
[311704707,1705343446125,-909.08427609,0.00030245,2]
[311704709,1705343446135,-3387.60982574,0.00030584,2]
[311704863,1705343733349,-185.17674386,0.00027263,2]
[311704864,1705343733370,-155.0,0.00027358,4]
[311704865,1705343733391,-500.0,0.00027359,2]
[311704866,1705343733411,-677.59372393,0.0002736,2]
[311704867,1705343733432,-2873.77131778,0.00027361,2]
[311704868,1705343733453,-10135.33451069,0.000274,2]
[311704869,1705343733478,-5683.07677809,0.00027522,2]
[311704870,1705343733500,-1112.22182837,0.00027524,2]
[311704871,1705343733519,-975.795941,0.00027524,2]
[311704872,1705343733539,-1475.83659854,0.0002831,2]
[311704873,1705343733561,-312.15458,0.00029131,2]
[311704874,1705343733581,-523.03797774,0.0002997,2]
[311704889,1705343803188,-4680.0,0.00027121,2]
[311704901,1705343872045,-155.0,0.00027118,2]
[311704902,1705343872066,-1196.17159553,0.00027118,2]
[311704903,1705343872091,-155.0,0.00027119,4]
[311704904,1705343872113,-155.0,0.0002712,2]
[311704905,1705343872137,-160.80243984,0.0002712,2]
[311704906,1705343872163,-1835.73664025,0.00027121,2]
[311704907,1705343872185,-500.0,0.00029069,2]
[311704908,1705343872208,-7371.26031948,0.0002907,2]
[311704909,1705343872229,-2115.74535146,0.00029071,2]
[311704910,1705343872254,-559.47182014,0.0002997,2]
[311704911,1705343872275,-305.27027518,0.0002997,2]
[311704912,1705343872297,-1111.54155812,0.0002997,2]
[311704923,1705343943253,-155.0,0.0002712,2]
[311704924,1705343943278,-679.24429502,0.0002712,2]
[311704925,1705343943303,-155.0,0.00027121,4]
[311704926,1705343943327,-198.98525444,0.00027998,2]
[311704927,1705343943351,-155.0,0.00027999,2]
[311704928,1705343943376,-22299.4239103,0.00028762,2]
[311704929,1705343943401,-305.27027518,0.0002997,2]
[311704930,1705343943425,-1842.67266164,0.0002997,2]
[311704931,1705343943449,-39.40360342,0.0003,4]
[311704933,1705343967093,-594.38972109,0.00024338,2]
[311704934,1705343967120,-151.44553826,0.00024339,2]
[311704935,1705343967194,-15.22112774,0.00024339,2]
[311704936,1705343970684,-322.52569099,0.00024338,2]
[311704937,1705343970813,-6.58215696,0.00024338,2]
[311704938,1705344013622,-849.03657826,0.00025997,2]
[311704939,1705344013643,-166.666666,0.00025998,2]
[311704940,1705344013665,-155.0,0.00027121,4]
[311704941,1705344013687,-166.666666,0.00027657,2]
[311704942,1705344013707,-8738.63008974,0.000291,2]
[311705113,1705344633774,-155.0,0.00027121,4]
[311705115,1705344633783,-1222.03199723,0.00028226,2]
[311705117,1705344633793,-2031.79600429,0.00028226,2]
[311705118,1705344633802,-880.17733203,0.00028227,2]
[311705119,1705344633845,-941.38887687,0.00028227,2]
[311705120,1705344633857,-4394.70924678,0.00028227,2]
[311705121,1705344633869,-150.77590707,0.00028227,2]
[311705122,1705344633878,-983.8910657,0.0002831,2]
[311705123,1705344633887,-170.164372,0.00028551,2]
[311705124,1705344633896,-312.15458,0.00028555,2]
[311705125,1705344633905,-187.3554591,0.00029042,2]
[311705126,1705344633914,-305.27027518,0.000291,2]
[311705127,1705344633923,-297.8809135,0.00030035,4]
[311705128,1705344633932,-160.7998464,0.00030036,2]
[311705129,1705344633941,-155.00620012,0.00030104,2]
[311705130,1705344633949,-5154.83,0.00030126,3]
[311705131,1705344633961,-87.58587634,0.00030126,3]
[311705132,1705344633972,-8712.55911817,0.00030126,3]
[311705497,1705344638254,-827.47500549,0.00030126,3]
[311705498,1705344638264,-1318.27826341,0.00030126,3]
[311705499,1705344638331,-6704.74173659,0.00030126,3]
[311705500,1705344638340,-6685.85,0.00030126,3]
[311705502,1705344638351,-500.0,0.00030133,2]
[311705503,1705344638361,-522.93963422,0.00030134,4]
[311705504,1705344638370,-1281.12926874,0.00030134,4]
[311705505,1705344638380,-260.43027978,0.00030134,4]
[311705506,1705344638389,-156.70193537,0.00030134,4]
[311705507,1705344638398,-166.70935578,0.00030134,4]
[311705508,1705344638408,-155.00310006,0.00030134,4]
[311705509,1705344638417,-463.46661998,0.00030134,4]
[311705510,1705344638426,-639.80669723,0.00030134,4]
[311705512,1705344638436,-2044.95108617,0.00030134,4]
[311705514,1705344638445,-321.42679429,0.00030134,4]
[311705515,1705344638454,-500.0,0.00030134,4]
[311705516,1705344638464,-164.91120392,0.00030134,4]
[311705517,1705344638474,-194.44766784,0.00030134,4]
[311705518,1705344638484,-861.1849247,0.00030134,4]
[311705519,1705344638494,-9525.74824194,0.00030134,4]
[311705520,1705344638506,-593.54996001,0.00030134,4]
[311705521,1705344638515,-1576.73391587,0.00030134,4]
[311705522,1705344638525,-3739.83692248,0.00030134,4]
[311705523,1705344638534,-155.00620012,0.00030134,4]
[311705524,1705344638543,-198.85280588,0.00030134,4]
[311705525,1705344638553,-155.41028211,0.00030134,4]
[311705526,1705344638562,-191.2459881,0.00030134,4]
[311705527,1705344638574,-487.64903974,0.00030134,4]
[311705528,1705344638584,-594.03896551,0.00030134,4]
[311705529,1705344638594,-329.83275795,0.00030134,4]
[311705530,1705344638603,-663.3841438,0.00030134,4]
[311705533,1705344638612,-165.71745296,0.00030134,4]
[311705534,1705344638733,-2004.59935184,0.00030134,4]
[311705535,1705344638742,-324.89893727,0.00030134,4]
[311705537,1705344638755,-523.40082483,0.00030134,4]
[311705538,1705344638764,-2035.80105868,0.00030134,4]
[311705540,1705344638773,-155.42991444,0.00030134,4]
[311705542,1705344638782,-643.28378818,0.00030135,4]
[311705544,1705344638791,-174.94849142,0.00030135,4]
[311705546,1705344638801,-677.01308619,0.00030135,4]
[311705547,1705344638811,-500.0,0.00030136,2]
[311705549,1705344638820,-497.72312481,0.00030136,2]
[311705551,1705344638829,-500.0,0.00030136,2]
[311705553,1705344638838,-500.0,0.00030136,2]
[311705554,1705344638847,-597.46,0.00030136,2]
[311705555,1705344638857,-500.0,0.00030136,2]
[311705557,1705344638868,-340.99562299,0.00030136,2]
[311705559,1705344638881,-159.00437701,0.00030136,2]
[311705560,1705344638890,-536.76,0.00030136,2]
[311705562,1705344638899,-500.0,0.00030136,2]
[311705564,1705344638908,-563.73,0.00030136,2]
[311705566,1705344638917,-500.0,0.00030136,2]
[311705567,1705344638926,-500.0,0.00030136,2]
[311705568,1705344638936,-500.0,0.00030136,2]
[311705569,1705344638946,-500.0,0.00030136,2]
[311705570,1705344638955,-500.0,0.00030136,2]
[311705571,1705344638966,-500.0,0.00030136,2]
[311705572,1705344638976,-500.0,0.00030136,2]
[311705573,1705344638985,-500.0,0.00030136,2]
[311705574,1705344638994,-500.0,0.00030136,2]
[311705575,1705344639003,-500.0,0.00030136,2]
[311705576,1705344639012,-674.79,0.00030136,2]
[311705577,1705344639021,-500.0,0.00030136,2]
[311705578,1705344639030,-500.0,0.00030136,2]
[311705579,1705344639040,-501.97119656,0.00030136,2]
[311705580,1705344639050,-500.0,0.00030136,2]
[311705581,1705344639059,-500.0,0.00030136,2]
[311705582,1705344639067,-627.39276305,0.00030136,2]
[311705583,1705344639077,-500.0,0.00030136,2]
[311705584,1705344639085,-500.0,0.00030136,2]
[311705585,1705344639095,-500.0,0.00030136,2]
[311705586,1705344639104,-500.0,0.00030136,2]
[311705587,1705344639113,-1000.0,0.00030136,2]
[311705588,1705344639122,-242.45759116,0.00030136,2]
[311705589,1705344639131,-500.0,0.00030136,2]
[311705590,1705344639140,-158.10850089,0.00030136,2]
[311705591,1705344639150,-505.54243636,0.00030136,2]
[311705592,1705344639159,-500.0,0.00030136,2]
[311705593,1705344639168,-500.0,0.00030136,2]
[311705594,1705344639178,-500.0,0.00030136,2]
[311705595,1705344639187,-505.75645169,0.00030136,2]
[311705596,1705344639196,-500.0,0.00030136,2]
[311705597,1705344639205,-1783.75,0.00030136,2]
[311705598,1705344639216,-500.0,0.00030136,2]
[311705599,1705344639225,-500.0,0.00030136,2]
[311705600,1705344639234,-513.83673442,0.00030136,2]
[311705601,1705344639243,-500.0,0.00030136,2]
[311705602,1705344639252,-500.0,0.00030136,2]
[311705603,1705344639262,-510.86527479,0.00030136,2]
[311705604,1705344639271,-433.35458811,0.00030136,2]
[311705605,1705344639280,-500.0,0.00030136,2]
[311705606,1705344639289,-500.0,0.00030136,2]
[311705607,1705344639298,-503.6558925,0.00030136,2]
[311705608,1705344639307,-870.97,0.00030136,2]
[311705609,1705344639317,-150.0,0.00030136,2]
[311705610,1705344639327,-500.0,0.00030136,2]
[311705611,1705344639336,-596.45899525,0.00030136,2]
[311705612,1705344639346,-500.0,0.00030136,2]
[311705613,1705344639355,-500.0,0.00030136,2]
[311705614,1705344639365,-500.0,0.00030136,2]
[311705615,1705344639374,-500.0,0.00030136,2]
[311705616,1705344639383,-502.77165723,0.00030136,2]
[311705617,1705344639393,-558.32,0.00030136,2]
[311705618,1705344639403,-580.72,0.00030136,2]
[311705619,1705344639412,-500.0,0.00030136,2]
[311705620,1705344639421,-501.54973426,0.00030136,2]
[311705621,1705344639430,-645.29925954,0.00030136,2]
[311705622,1705344639439,-1082.47,0.00030136,2]
[311705623,1705344639449,-86.80793886,0.00030136,2]
[311705624,1705344639463,-413.19206114,0.00030136,2]
[311705625,1705344639472,-500.0,0.00030136,2]
[311705626,1705344639483,-503.20535621,0.00030136,2]
[311705627,1705344639492,-499.94312633,0.00030136,2]
[311705628,1705344639502,-500.0,0.00030136,2]
[311705629,1705344639511,-531.32900075,0.00030136,2]
[311705630,1705344639520,-500.25080538,0.00030136,2]
[311705631,1705344639529,-374.146509,0.00030136,2]
[311705632,1705344639538,-500.0,0.00030136,2]
[311705633,1705344639548,-500.0,0.00030136,2]
[311705634,1705344639557,-500.0,0.00030136,2]
[311705635,1705344639566,-628.21,0.00030136,2]
[311705636,1705344639575,-500.0,0.00030136,2]
[311705638,1705344639584,-500.0,0.00030136,2]
[311705640,1705344639594,-500.0,0.00030136,2]
[311705642,1705344639602,-500.0,0.00030136,2]
[311705643,1705344639611,-500.0,0.00030136,2]
[311705644,1705344639620,-819.24,0.00030136,2]
[311705645,1705344639629,-500.0,0.00030136,2]
[311705646,1705344639639,-500.0,0.00030136,2]
[311705648,1705344639648,-500.0,0.00030136,2]
[311705649,1705344639658,-500.0,0.00030136,2]
[311705650,1705344639667,-548.32472871,0.00030136,2]
[311705651,1705344639676,-500.0,0.00030136,2]
[311705652,1705344639686,-506.28699417,0.00030136,2]
[311705653,1705344639695,-500.0,0.00030136,2]
[311705654,1705344639705,-506.77404664,0.00030136,2]
[311705655,1705344639716,-500.0,0.00030136,2]
[311705656,1705344639725,-500.0,0.00030136,2]
[311705657,1705344639734,-166.98600418,0.00030136,2]
[311705658,1705344639744,-500.0,0.00030136,2]
[311705659,1705344639753,-500.0,0.00030136,2]
[311705660,1705344639762,-300.39282718,0.00030136,2]
[311705661,1705344639772,-500.0,0.00030136,2]
[311705662,1705344639781,-730.7,0.00030136,2]
[311705663,1705344639791,-500.0,0.00030136,2]
[311705664,1705344639801,-500.0,0.00030136,2]
[311705665,1705344639810,-733.17,0.00030136,2]
[311705666,1705344639820,-2278.62,0.00030136,2]
[311705667,1705344639829,-500.0,0.00030136,2]
[311705668,1705344639838,-584.31465626,0.00030136,2]
[311705669,1705344639848,-233.41224948,0.00030136,2]
[311705769,1705344641207,-266.58775052,0.00030136,2]
[311705770,1705344641219,-514.91426394,0.00030136,2]
[311705771,1705344641228,-500.0,0.00030136,2]
[311705772,1705344641238,-18.49798554,0.00030136,2]
[311705773,1705344641250,-359.04862008,0.00030136,2]
[311705774,1705344641262,-122.45339438,0.00030136,2]
[311705775,1705344641271,-500.0,0.00030136,2]
[311705776,1705344641281,-168.98875141,0.00030136,2]
[311705777,1705344641290,-403.6744754,0.00030136,2]
[311705778,1705344641300,-500.0,0.00030136,2]
[311705779,1705344641309,-1055.08,0.00030136,2]
[311705780,1705344641319,-414.80633094,0.00030136,2]
[311705781,1705344641329,-500.0,0.00030136,2]
[311705782,1705344641338,-953.62,0.00030136,2]
[311705783,1705344641348,-548.52081002,0.00030136,2]
[311705784,1705344641358,-500.0,0.00030136,2]
[311705785,1705344641367,-500.0,0.00030136,2]
[311705786,1705344641377,-500.0,0.00030136,2]
[311705787,1705344641386,-2325.04,0.00030136,2]
[311705788,1705344641396,-500.0,0.00030136,2]
[311705789,1705344641406,-500.0,0.00030136,2]